[Event "Early-Titled-Tuesday-Blitz-May-07-2024"]
[Site "Chess.com"]
[Date "2024.05.07"]
[Round "5"]
[White "lluiss"]
[Black "DeArron_Fox"]
[Result "0-1"]
[WhiteElo "2230"]
[BlackElo "2512"]
[TimeControl "180+1"]
[EndTime "8:59:47 PDT"]
[Termination "DeArron_Fox won on time"]

1. Nf3 {[%clk 0:02:57.4]} 1... d5 {[%clk 0:02:59.2]} 2. d4 {[%clk 0:02:52.7]}
2... Nf6 {[%clk 0:02:59.3]} 3. c4 {[%clk 0:02:51.8]} 3... e6 {[%clk 0:02:59.2]}
4. cxd5 {[%clk 0:02:51.6]} 4... exd5 {[%clk 0:02:59.1]} 5. Nc3 {[%clk 0:02:52]}
5... c6 {[%clk 0:02:59.4]} 6. Qc2 {[%clk 0:02:51]} 6... Bd6 {[%clk 0:02:51.4]}
7. Bg5 {[%clk 0:02:50]} 7... O-O {[%clk 0:02:37.5]} 8. e3 {[%clk 0:02:47.9]}
8... h6 {[%clk 0:02:32.6]} 9. Bh4 {[%clk 0:02:46.8]} 9... Nbd7 {[%clk
0:02:14.8]} 10. Bd3 {[%clk 0:02:42.1]} 10... Re8 {[%clk 0:02:15.2]} 11. O-O
{[%clk 0:02:36]} 11... a6 {[%clk 0:01:53]} 12. Rfc1 {[%clk 0:02:33.9]} 12... Nf8
{[%clk 0:01:22.1]} 13. Bg3 {[%clk 0:02:17.5]} 13... Bxg3 {[%clk 0:01:13.2]} 14.
hxg3 {[%clk 0:02:16.8]} 14... Be6 {[%clk 0:01:07.3]} 15. b4 {[%clk 0:02:16.5]}
15... N8d7 {[%clk 0:01:00.5]} 16. Na4 {[%clk 0:02:15.8]} 16... Rc8 {[%clk
0:00:24.8]} 17. Nc5 {[%clk 0:02:00.1]} 17... Qc7 {[%clk 0:00:24.1]} 18. a4
{[%clk 0:01:55.8]} 18... a5 {[%clk 0:00:17.7]} 19. b5 {[%clk 0:01:35.2]} 19...
Nxc5 {[%clk 0:00:11.6]} 20. Qxc5 {[%clk 0:01:26.3]} 20... Nd7 {[%clk 0:00:11.2]}
21. Qc3 {[%clk 0:01:23.5]} 21... c5 {[%clk 0:00:09.4]} 22. dxc5 {[%clk
0:01:13.9]} 22... Nxc5 {[%clk 0:00:10.3]} 23. Qd4 {[%clk 0:00:50.5]} 23... b6
{[%clk 0:00:10.1]} 24. Rc3 {[%clk 0:00:29.1]} 24... Qd6 {[%clk 0:00:05.3]} 25.
Rac1 {[%clk 0:00:27.8]} 25... Rc7 {[%clk 0:00:03]} 26. Bb1 {[%clk 0:00:26.6]}
26... Rec8 {[%clk 0:00:02.3]} 27. Qe5 {[%clk 0:00:25]} 27... Qxe5 {[%clk
0:00:02.3]} 28. Nxe5 {[%clk 0:00:25.4]} 28... Kf8 {[%clk 0:00:02.5]} 29. Bc2
{[%clk 0:00:20.3]} 29... Ke7 {[%clk 0:00:02.8]} 30. Bd1 {[%clk 0:00:20]} 30...
Kd6 {[%clk 0:00:03]} 31. Nc6 {[%clk 0:00:20]} 31... Bd7 {[%clk 0:00:01.6]} 32.
Nd4 {[%clk 0:00:15.6]} 32... Ne6 {[%clk 0:00:01.9]} 33. Nf5+ {[%clk 0:00:12.2]}
33... Ke5 {[%clk 0:00:02]} 34. Rxc7 {[%clk 0:00:11.9]} 34... Rxc7 {[%clk
0:00:02.2]} 35. Rxc7 {[%clk 0:00:11.9]} 35... Nxc7 {[%clk 0:00:03.1]} 36. Nd4
{[%clk 0:00:12]} 36... Ne6 {[%clk 0:00:02.2]} 37. Nxe6 {[%clk 0:00:08.8]} 37...
fxe6 {[%clk 0:00:03.1]} 38. Kf1 {[%clk 0:00:08.3]} 38... Kd6 {[%clk 0:00:03.4]}
39. Ke2 {[%clk 0:00:07.2]} 39... Kc5 {[%clk 0:00:04.1]} 40. Kd2 {[%clk
0:00:07.6]} 40... e5 {[%clk 0:00:04.2]} 41. f4 {[%clk 0:00:07.2]} 41... exf4
{[%clk 0:00:02.4]} 42. gxf4 {[%clk 0:00:06.7]} 42... Bf5 {[%clk 0:00:03]} 43.
Kc3 {[%clk 0:00:06.6]} 43... Be4 {[%clk 0:00:03.2]} 44. Bg4 {[%clk 0:00:04.9]}
44... Bxg2 {[%clk 0:00:02.6]} 45. Bf5 {[%clk 0:00:05.2]} 45... h5 {[%clk
0:00:02.3]} 46. Be6 {[%clk 0:00:04.7]} 46... h4 {[%clk 0:00:02.4]} 47. Bf5
{[%clk 0:00:04.2]} 47... h3 {[%clk 0:00:02.8]} 48. Bxh3 {[%clk 0:00:04.4]} 48...
Bxh3 {[%clk 0:00:03.7]} 0-1

[Event "Early-Titled-Tuesday-Blitz-May-07-2024"]
[Site "Chess.com"]
[Date "2024.05.07"]
[Round "5"]
[White "AccioChess"]
[Black "Boundless_Strike"]
[Result "0-1"]
[WhiteElo "2447"]
[BlackElo "2660"]
[TimeControl "180+1"]
[EndTime "8:59:51 PDT"]
[Termination "Boundless_Strike won by checkmate"]

1. Nf3 {[%clk 0:03:00.9]} 1... d6 {[%clk 0:02:59.3]} 2. g3 {[%clk 0:02:59.9]}
2... e5 {[%clk 0:02:58.9]} 3. Bg2 {[%clk 0:02:53.6]} 3... f5 {[%clk 0:02:58.9]}
4. O-O {[%clk 0:02:53.9]} 4... Nf6 {[%clk 0:02:58.7]} 5. d4 {[%clk 0:02:53.9]}
5... e4 {[%clk 0:02:58.5]} 6. Nfd2 {[%clk 0:02:48.8]} 6... Be7 {[%clk
0:02:56.1]} 7. c4 {[%clk 0:02:49]} 7... O-O {[%clk 0:02:55.7]} 8. Nc3 {[%clk
0:02:49.4]} 8... c5 {[%clk 0:02:55.9]} 9. dxc5 {[%clk 0:02:47.7]} 9... dxc5
{[%clk 0:02:55.6]} 10. Nb3 {[%clk 0:02:47.2]} 10... Nc6 {[%clk 0:02:55.5]} 11.
Bg5 {[%clk 0:02:46.8]} 11... Be6 {[%clk 0:02:49.5]} 12. Bxf6 {[%clk 0:02:46.8]}
12... Bxf6 {[%clk 0:01:18.7]} 13. Nd5 {[%clk 0:02:36.5]} 13... b6 {[%clk
0:00:32.3]} 14. Qd2 {[%clk 0:02:24.8]} 14... Bxd5 {[%clk 0:00:26.4]} 15. cxd5
{[%clk 0:02:24.5]} 15... Nd4 {[%clk 0:00:26.9]} 16. e3 {[%clk 0:02:22.2]} 16...
Nxb3 {[%clk 0:00:20.7]} 17. axb3 {[%clk 0:02:23.1]} 17... Qd6 {[%clk 0:00:16.9]}
18. Rfd1 {[%clk 0:02:19.9]} 18... b5 {[%clk 0:00:11.6]} 19. Bf1 {[%clk
0:02:10.7]} 19... a6 {[%clk 0:00:12]} 20. Ra2 {[%clk 0:02:11]} 20... Rfd8 {[%clk
0:00:11.1]} 21. Rda1 {[%clk 0:01:58.9]} 21... Qxd5 {[%clk 0:00:09.6]} 22. Qxd5+
{[%clk 0:01:59]} 22... Rxd5 {[%clk 0:00:10.5]} 23. Bxb5 {[%clk 0:01:58.8]} 23...
Rd2 {[%clk 0:00:10.1]} 24. Bc4+ {[%clk 0:01:55.2]} 24... Kf8 {[%clk 0:00:09.8]}
25. Rxa6 {[%clk 0:01:51.4]} 25... Rxa6 {[%clk 0:00:08.1]} 26. Rxa6 {[%clk
0:01:51.1]} 26... Rxb2 {[%clk 0:00:04.1]} 27. Rc6 {[%clk 0:01:51.1]} 27... Bc3
{[%clk 0:00:03.4]} 28. Rxc5 {[%clk 0:01:50]} 28... g6 {[%clk 0:00:03.8]} 29. Be2
{[%clk 0:00:58.4]} 29... Bb4 {[%clk 0:00:02.8]} 30. Rc8+ {[%clk 0:00:54.3]}
30... Ke7 {[%clk 0:00:02.8]} 31. Kf1 {[%clk 0:00:52.5]} 31... Rb1+ {[%clk
0:00:03.1]} 32. Kg2 {[%clk 0:00:52.6]} 32... Rb2 {[%clk 0:00:03.8]} 33. Rc4
{[%clk 0:00:48.3]} 33... Be1 {[%clk 0:00:03.7]} 34. Kf1 {[%clk 0:00:47.8]} 34...
Ba5 {[%clk 0:00:04]} 35. Ra4 {[%clk 0:00:39]} 35... Bc3 {[%clk 0:00:03.9]} 36.
Ra7+ {[%clk 0:00:37.9]} 36... Kf6 {[%clk 0:00:04.4]} 37. Rxh7 {[%clk 0:00:36.3]}
37... Rb1+ {[%clk 0:00:04.7]} 38. Kg2 {[%clk 0:00:36.6]} 38... Rb2 {[%clk
0:00:05.6]} 39. Rc7 {[%clk 0:00:27.9]} 39... Bb4 {[%clk 0:00:04.6]} 40. Rb7
{[%clk 0:00:27]} 40... Bc3 {[%clk 0:00:04.6]} 41. Rb6+ {[%clk 0:00:24.9]} 41...
Kg7 {[%clk 0:00:05.2]} 42. Kf1 {[%clk 0:00:21]} 42... Rb1+ {[%clk 0:00:05.4]}
43. Kg2 {[%clk 0:00:21.4]} 43... Rb2 {[%clk 0:00:06.2]} 44. Bc4 {[%clk
0:00:16.6]} 44... Be1 {[%clk 0:00:06.2]} 45. h4 {[%clk 0:00:14.5]} 45... Bxf2
{[%clk 0:00:05.8]} 46. Kh3 {[%clk 0:00:14.9]} 46... Bg1 {[%clk 0:00:05.2]} 47.
g4 {[%clk 0:00:15.4]} 47... Bxe3 {[%clk 0:00:04.6]} 48. Rb7+ {[%clk 0:00:15.8]}
48... Kf6 {[%clk 0:00:05.2]} 49. g5+ {[%clk 0:00:13.6]} 49... Ke5 {[%clk
0:00:05.6]} 50. Re7+ {[%clk 0:00:13.4]} 50... Kf4 {[%clk 0:00:05.8]} 51. h5
{[%clk 0:00:05]} 51... Bg1 {[%clk 0:00:06]} 52. hxg6 {[%clk 0:00:03.1]} 52...
Rh2# {[%clk 0:00:06.2]} 0-1

[Event "Early-Titled-Tuesday-Blitz-May-07-2024"]
[Site "Chess.com"]
[Date "2024.05.07"]
[Round "5"]
[White "MikeSailer"]
[Black "milovichalex"]
[Result "1-0"]
[WhiteElo "2127"]
[BlackElo "2326"]
[TimeControl "180+1"]
[EndTime "8:59:52 PDT"]
[Termination "MikeSailer won by checkmate"]

1. g3 {[%clk 0:03:00.3]} 1... d5 {[%clk 0:02:59.3]} 2. Bg2 {[%clk 0:02:59.6]}
2... Nf6 {[%clk 0:02:55.6]} 3. c4 {[%clk 0:02:59.8]} 3... e6 {[%clk 0:02:55.5]}
4. Nf3 {[%clk 0:02:57.7]} 4... c6 {[%clk 0:02:55.3]} 5. O-O {[%clk 0:02:56.8]}
5... Be7 {[%clk 0:02:54.8]} 6. d4 {[%clk 0:02:56.6]} 6... O-O {[%clk 0:02:54.6]}
7. Nc3 {[%clk 0:02:55.6]} 7... Nbd7 {[%clk 0:02:54.8]} 8. Bf4 {[%clk 0:02:47]}
8... b6 {[%clk 0:02:53.2]} 9. Rc1 {[%clk 0:02:36.9]} 9... Bb7 {[%clk 0:02:52.3]}
10. cxd5 {[%clk 0:02:31.6]} 10... cxd5 {[%clk 0:02:50.1]} 11. Nb5 {[%clk
0:02:13.6]} 11... a6 {[%clk 0:02:48.2]} 12. Bc7 {[%clk 0:02:10.9]} 12... Qe8
{[%clk 0:02:45.5]} 13. Nd6 {[%clk 0:02:05]} 13... Bxd6 {[%clk 0:02:44.8]} 14.
Bxd6 {[%clk 0:02:04.7]} 14... Ne4 {[%clk 0:02:35.1]} 15. Bxf8 {[%clk 0:02:03.6]}
15... Nxf8 {[%clk 0:02:33.7]} 16. Ne5 {[%clk 0:02:03.7]} 16... Rb8 {[%clk
0:02:27.4]} 17. Rc7 {[%clk 0:01:53]} 17... Nd6 {[%clk 0:02:25.8]} 18. Qc2 {[%clk
0:01:46.4]} 18... Nb5 {[%clk 0:01:57]} 19. Rxf7 {[%clk 0:01:24.4]} 19... Nxd4
{[%clk 0:01:53.9]} 20. Qd3 {[%clk 0:01:10.8]} 20... Nf5 {[%clk 0:01:50.6]} 21.
Rc7 {[%clk 0:00:54.7]} 21... Nd6 {[%clk 0:01:46.4]} 22. Rfc1 {[%clk 0:00:47.1]}
22... Nb5 {[%clk 0:01:40.4]} 23. R7c2 {[%clk 0:00:38.4]} 23... Nd6 {[%clk
0:01:40.3]} 24. f4 {[%clk 0:00:34]} 24... Qd8 {[%clk 0:01:31.9]} 25. h4 {[%clk
0:00:29]} 25... Qe8 {[%clk 0:01:08]} 26. Kh2 {[%clk 0:00:28.2]} 26... Nf7 {[%clk
0:00:55.8]} 27. Nxf7 {[%clk 0:00:25.9]} 27... Qxf7 {[%clk 0:00:56.1]} 28. Rc7
{[%clk 0:00:25]} 28... Qf6 {[%clk 0:00:56]} 29. Qc3 {[%clk 0:00:21.5]} 29... d4
{[%clk 0:00:51.6]} 30. Qd3 {[%clk 0:00:19.6]} 30... Bxg2 {[%clk 0:00:51.1]} 31.
Kxg2 {[%clk 0:00:19]} 31... Rd8 {[%clk 0:00:48]} 32. Rc8 {[%clk 0:00:17.9]}
32... Rd5 {[%clk 0:00:45]} 33. Rb8 {[%clk 0:00:14.7]} 33... e5 {[%clk
0:00:44.8]} 34. Rcc8 {[%clk 0:00:13.4]} 34... exf4 {[%clk 0:00:25.4]} 35. Rxf8+
{[%clk 0:00:13.9]} 35... Qxf8 {[%clk 0:00:25.8]} 36. Rxf8+ {[%clk 0:00:13]}
36... Kxf8 {[%clk 0:00:26.7]} 37. gxf4 {[%clk 0:00:10.9]} 37... Rd6 {[%clk
0:00:25.9]} 38. Kf3 {[%clk 0:00:10.6]} 38... Kf7 {[%clk 0:00:25.9]} 39. Qxa6
{[%clk 0:00:10.5]} 39... Kf6 {[%clk 0:00:25.4]} 40. Qb7 {[%clk 0:00:10.3]} 40...
Re6 {[%clk 0:00:25.1]} 41. Qd5 {[%clk 0:00:09.3]} 41... Re3+ {[%clk 0:00:24.9]}
42. Kf2 {[%clk 0:00:07.1]} 42... Rh3 {[%clk 0:00:25.1]} 43. Qxd4+ {[%clk
0:00:07.5]} 43... Kf5 {[%clk 0:00:24.2]} 44. Qe5+ {[%clk 0:00:07.9]} 44... Kg6
{[%clk 0:00:24.7]} 45. Qe6+ {[%clk 0:00:05.1]} 45... Kh5 {[%clk 0:00:24.8]} 46.
Qxh3 {[%clk 0:00:05]} 46... h6 {[%clk 0:00:25]} 47. Qe6 {[%clk 0:00:04.6]} 47...
g6 {[%clk 0:00:25.4]} 48. Qxb6 {[%clk 0:00:03.9]} 48... g5 {[%clk 0:00:25.4]}
49. Qe6 {[%clk 0:00:03.5]} 49... Kxh4 {[%clk 0:00:25.3]} 50. Kg2 {[%clk
0:00:02.2]} 50... h5 {[%clk 0:00:25.3]} 51. Qh3# {[%clk 0:00:01.1]} 1-0

[Event "Early-Titled-Tuesday-Blitz-May-07-2024"]
[Site "Chess.com"]
[Date "2024.05.07"]
[Round "5"]
[White "ckgchess"]
[Black "SirStrateg"]
[Result "0-1"]
[WhiteElo "2896"]
[BlackElo "2691"]
[TimeControl "180+1"]
[EndTime "8:59:53 PDT"]
[Termination "SirStrateg won on time"]

1. e4 {[%clk 0:02:58.9]} 1... d6 {[%clk 0:03:00.5]} 2. d4 {[%clk 0:02:59.1]}
2... Nf6 {[%clk 0:03:01.1]} 3. Nc3 {[%clk 0:02:59.6]} 3... c6 {[%clk 0:03:01.5]}
4. Nf3 {[%clk 0:02:58.1]} 4... Bg4 {[%clk 0:03:01.4]} 5. h3 {[%clk 0:02:58.3]}
5... Bh5 {[%clk 0:03:01.7]} 6. g4 {[%clk 0:02:58.5]} 6... Bg6 {[%clk 0:03:02.2]}
7. Qe2 {[%clk 0:02:59.2]} 7... e6 {[%clk 0:03:02.9]} 8. Bg5 {[%clk 0:02:37.5]}
8... Be7 {[%clk 0:03:01.2]} 9. O-O-O {[%clk 0:02:20.6]} 9... Nbd7 {[%clk
0:02:50.3]} 10. Kb1 {[%clk 0:02:13]} 10... d5 {[%clk 0:02:47.5]} 11. Nd2 {[%clk
0:01:56.4]} 11... Nxe4 {[%clk 0:02:42.7]} 12. Ndxe4 {[%clk 0:01:52.5]} 12...
Bxg5 {[%clk 0:02:31.8]} 13. Nxg5 {[%clk 0:01:39.7]} 13... Qxg5 {[%clk
0:02:31.4]} 14. h4 {[%clk 0:01:40.5]} 14... Qf4 {[%clk 0:02:27.1]} 15. h5 {[%clk
0:01:30]} 15... Be4 {[%clk 0:02:25.5]} 16. Nxe4 {[%clk 0:01:29.9]} 16... dxe4
{[%clk 0:02:22]} 17. Bg2 {[%clk 0:01:23]} 17... Nf6 {[%clk 0:02:20.7]} 18. f3
{[%clk 0:01:06.3]} 18... exf3 {[%clk 0:02:13.5]} 19. Bxf3 {[%clk 0:01:07.2]}
19... O-O-O {[%clk 0:02:13.8]} 20. c3 {[%clk 0:01:05.6]} 20... h6 {[%clk
0:02:10.9]} 21. Rhf1 {[%clk 0:01:05.7]} 21... Qg5 {[%clk 0:02:04]} 22. a4 {[%clk
0:00:58.3]} 22... Rd7 {[%clk 0:02:02.8]} 23. Qc4 {[%clk 0:00:46]} 23... Rhd8
{[%clk 0:01:55.2]} 24. Rde1 {[%clk 0:00:44.2]} 24... Qa5 {[%clk 0:01:32.3]} 25.
Re5 {[%clk 0:00:39]} 25... Qc7 {[%clk 0:01:32.6]} 26. a5 {[%clk 0:00:36.6]}
26... Nd5 {[%clk 0:01:30.4]} 27. a6 {[%clk 0:00:35.5]} 27... b6 {[%clk
0:01:22.9]} 28. Bh1 {[%clk 0:00:31.6]} 28... Kb8 {[%clk 0:01:14.7]} 29. Qe2
{[%clk 0:00:28.3]} 29... Rd6 {[%clk 0:00:59.5]} 30. Qf3 {[%clk 0:00:26]} 30...
f6 {[%clk 0:00:58.4]} 31. Re2 {[%clk 0:00:26.2]} 31... b5 {[%clk 0:00:56.7]} 32.
Rfe1 {[%clk 0:00:26.2]} 32... Qc8 {[%clk 0:00:51.6]} 33. Qd3 {[%clk 0:00:23.6]}
33... Nf4 {[%clk 0:00:48.3]} 34. Qg3 {[%clk 0:00:22]} 34... Nxe2 {[%clk
0:00:48.2]} 35. Rxe2 {[%clk 0:00:22.9]} 35... Ka8 {[%clk 0:00:43]} 36. Qd3
{[%clk 0:00:21.4]} 36... Qxa6 {[%clk 0:00:42.9]} 37. Qg6 {[%clk 0:00:19.4]}
37... Qb7 {[%clk 0:00:42.8]} 38. Qe4 {[%clk 0:00:16.5]} 38... a6 {[%clk
0:00:42.4]} 39. Qe3 {[%clk 0:00:17.1]} 39... Kb8 {[%clk 0:00:41.3]} 40. Qg3
{[%clk 0:00:17.3]} 40... Qc7 {[%clk 0:00:41.7]} 41. Qf3 {[%clk 0:00:17.5]} 41...
Ka7 {[%clk 0:00:38]} 42. Qf2 {[%clk 0:00:17.7]} 42... Qb6 {[%clk 0:00:37.1]} 43.
Qf3 {[%clk 0:00:17.8]} 43... a5 {[%clk 0:00:37.1]} 44. Qg3 {[%clk 0:00:18]}
44... a4 {[%clk 0:00:37]} 45. Qf4 {[%clk 0:00:18.7]} 45... Ka6 {[%clk
0:00:36.6]} 46. Qd2 {[%clk 0:00:18]} 46... c5 {[%clk 0:00:36.1]} 47. d5 {[%clk
0:00:11.9]} 47... c4 {[%clk 0:00:31.4]} 48. Qc2 {[%clk 0:00:07.6]} 48... Qg1+
{[%clk 0:00:30.8]} 49. Ka2 {[%clk 0:00:07.3]} 49... Qxh1 {[%clk 0:00:31.2]} 50.
dxe6 {[%clk 0:00:08]} 50... Qc6 {[%clk 0:00:28.2]} 51. e7 {[%clk 0:00:08.3]}
51... Re8 {[%clk 0:00:28.8]} 52. Qg6 {[%clk 0:00:09.1]} 52... Qd7 {[%clk
0:00:25.5]} 53. Qf7 {[%clk 0:00:09.4]} 53... Rb6 {[%clk 0:00:21.4]} 54. Re3
{[%clk 0:00:08.8]} 54... Rb7 {[%clk 0:00:21]} 55. Re6+ {[%clk 0:00:04.3]} 55...
Ka7 {[%clk 0:00:19.8]} 56. Re2 {[%clk 0:00:03.1]} 56... Rxe7 {[%clk 0:00:20.2]}
0-1

[Event "Early-Titled-Tuesday-Blitz-May-07-2024"]
[Site "Chess.com"]
[Date "2024.05.07"]
[Round "5"]
[White "masterofpuppets2"]
[Black "Root_21"]
[Result "1-0"]
[WhiteElo "2475"]
[BlackElo "2585"]
[TimeControl "180+1"]
[EndTime "8:59:54 PDT"]
[Termination "masterofpuppets2 won on time"]

1. d4 {[%clk 0:03:00.9]} 1... d5 {[%clk 0:02:57.5]} 2. c4 {[%clk 0:03:00.9]}
2... e6 {[%clk 0:02:57.6]} 3. Nf3 {[%clk 0:03:00.7]} 3... c5 {[%clk 0:02:55.7]}
4. cxd5 {[%clk 0:03:00.4]} 4... exd5 {[%clk 0:02:56.6]} 5. g3 {[%clk 0:03:00.7]}
5... Nf6 {[%clk 0:02:56.8]} 6. Bg2 {[%clk 0:03:01.3]} 6... Nc6 {[%clk 0:02:57]}
7. O-O {[%clk 0:03:02]} 7... Be7 {[%clk 0:02:56.9]} 8. Nc3 {[%clk 0:03:02.4]}
8... O-O {[%clk 0:02:55.2]} 9. Bg5 {[%clk 0:03:02.6]} 9... c4 {[%clk 0:02:55.6]}
10. Ne5 {[%clk 0:03:02.2]} 10... Be6 {[%clk 0:02:42.2]} 11. e3 {[%clk
0:03:01.6]} 11... h6 {[%clk 0:02:29.6]} 12. Bxf6 {[%clk 0:03:00.7]} 12... Bxf6
{[%clk 0:02:30.5]} 13. f4 {[%clk 0:03:01.3]} 13... Ne7 {[%clk 0:02:26]} 14. g4
{[%clk 0:02:57.8]} 14... Qc8 {[%clk 0:02:25.1]} 15. f5 {[%clk 0:02:54]} 15...
Bd7 {[%clk 0:02:25]} 16. Bxd5 {[%clk 0:02:41.9]} 16... Nxd5 {[%clk 0:02:21.1]}
17. Nxd5 {[%clk 0:02:42]} 17... Bg5 {[%clk 0:02:21.5]} 18. f6 {[%clk 0:02:30.4]}
18... Qd8 {[%clk 0:02:06.3]} 19. Ne7+ {[%clk 0:01:58.5]} 19... Kh8 {[%clk
0:02:02.3]} 20. fxg7+ {[%clk 0:01:44.1]} 20... Kxg7 {[%clk 0:02:03.2]} 21. Nf5+
{[%clk 0:01:43.9]} 21... Bxf5 {[%clk 0:02:02.6]} 22. gxf5 {[%clk 0:01:34.3]}
22... Bxe3+ {[%clk 0:01:59.9]} 23. Kh1 {[%clk 0:01:28.8]} 23... Qxd4 {[%clk
0:01:38.6]} 24. Qh5 {[%clk 0:01:02.8]} 24... Qd5+ {[%clk 0:01:21.6]} 25. Rf3
{[%clk 0:01:02.3]} 25... Bg5 {[%clk 0:01:18.1]} 26. Rg1 {[%clk 0:00:49.7]} 26...
Rg8 {[%clk 0:00:55.5]} 27. h4 {[%clk 0:00:31.9]} 27... Rh8 {[%clk 0:00:43.3]}
28. hxg5 {[%clk 0:00:27.9]} 28... Qxe5 {[%clk 0:00:26.3]} 29. f6+ {[%clk
0:00:22.6]} 29... Kf8 {[%clk 0:00:25.3]} 30. Rh3 {[%clk 0:00:16]} 30... Qd5+
{[%clk 0:00:22.2]} 31. Rg2 {[%clk 0:00:14.8]} 31... Re8 {[%clk 0:00:21.8]} 32.
Kh2 {[%clk 0:00:14.6]} 32... Re1 {[%clk 0:00:19]} 33. g6 {[%clk 0:00:12.7]}
33... Qxh5 {[%clk 0:00:14]} 34. Rxh5 {[%clk 0:00:13.6]} 34... fxg6 {[%clk
0:00:14.3]} 35. Rxg6 {[%clk 0:00:14.3]} 35... Kf7 {[%clk 0:00:14.3]} 36. Rg7+
{[%clk 0:00:14.5]} 36... Kxf6 {[%clk 0:00:14.1]} 37. Rxb7 {[%clk 0:00:15.4]}
37... Kg6 {[%clk 0:00:12.6]} 38. Rh4 {[%clk 0:00:15]} 38... Rd8 {[%clk
0:00:10.2]} 39. Rg4+ {[%clk 0:00:11.6]} 39... Kh5 {[%clk 0:00:09.3]} 40. Rg2
{[%clk 0:00:12.1]} 40... Rdd1 {[%clk 0:00:06.9]} 41. Rxa7 {[%clk 0:00:11.5]}
41... Kh4 {[%clk 0:00:06.2]} 42. Rf2 {[%clk 0:00:07.9]} 42... Rh1+ {[%clk
0:00:03.4]} 43. Kg2 {[%clk 0:00:08.4]} 43... Rdg1+ {[%clk 0:00:03.7]} 44. Kf3
{[%clk 0:00:08.9]} 44... h5 {[%clk 0:00:02.6]} 45. Ra4 {[%clk 0:00:07.7]} 45...
Rc1 {[%clk 0:00:02.2]} 46. b3 {[%clk 0:00:07.6]} 46... Rh3+ {[%clk 0:00:01.3]}
47. Ke2 {[%clk 0:00:07.8]} 47... Rc2+ {[%clk 0:00:01.5]} 48. Kf1 {[%clk
0:00:07.4]} 1-0

[Event "Early-Titled-Tuesday-Blitz-May-07-2024"]
[Site "Chess.com"]
[Date "2024.05.07"]
[Round "5"]
[White "tptagain"]
[Black "FontVella8"]
[Result "1-0"]
[WhiteElo "2929"]
[BlackElo "2682"]
[TimeControl "180+1"]
[EndTime "8:59:55 PDT"]
[Termination "tptagain won by resignation"]

1. e4 {[%clk 0:03:00.9]} 1... c6 {[%clk 0:02:59.8]} 2. d4 {[%clk 0:03:00.2]}
2... d5 {[%clk 0:03:00.7]} 3. e5 {[%clk 0:03:00.1]} 3... Bf5 {[%clk 0:03:00.6]}
4. Bd3 {[%clk 0:02:57.3]} 4... Bxd3 {[%clk 0:03:00.1]} 5. Qxd3 {[%clk
0:02:58.2]} 5... e6 {[%clk 0:03:00.8]} 6. Ne2 {[%clk 0:02:58]} 6... Nd7 {[%clk
0:02:59.6]} 7. O-O {[%clk 0:02:55.8]} 7... Ne7 {[%clk 0:03:00.1]} 8. Nd2 {[%clk
0:02:53.3]} 8... c5 {[%clk 0:03:00.3]} 9. c3 {[%clk 0:02:53.5]} 9... Nc6 {[%clk
0:03:00]} 10. f4 {[%clk 0:02:50.7]} 10... g6 {[%clk 0:02:59.3]} 11. Nf3 {[%clk
0:02:46.5]} 11... Qb6 {[%clk 0:02:57.5]} 12. a3 {[%clk 0:02:39.2]} 12... Be7
{[%clk 0:02:51.2]} 13. b4 {[%clk 0:02:28.5]} 13... cxd4 {[%clk 0:02:51.4]} 14.
cxd4 {[%clk 0:02:15.4]} 14... Rc8 {[%clk 0:02:51.5]} 15. Be3 {[%clk 0:02:11.7]}
15... a6 {[%clk 0:02:49.8]} 16. Qd1 {[%clk 0:01:54.3]} 16... Qd8 {[%clk
0:02:45.4]} 17. g4 {[%clk 0:01:53.6]} 17... Nb6 {[%clk 0:02:44.6]} 18. Ng3
{[%clk 0:01:47.7]} 18... Nc4 {[%clk 0:02:43.9]} 19. Bc1 {[%clk 0:01:47.5]} 19...
Qb6 {[%clk 0:02:41.8]} 20. Kh1 {[%clk 0:01:45.5]} 20... h5 {[%clk 0:02:32]} 21.
gxh5 {[%clk 0:01:45.5]} 21... gxh5 {[%clk 0:02:31.9]} 22. f5 {[%clk 0:01:41.8]}
22... h4 {[%clk 0:02:30.4]} 23. Ne2 {[%clk 0:01:42]} 23... Kd7 {[%clk
0:02:19.8]} 24. f6 {[%clk 0:01:32.8]} 24... Bf8 {[%clk 0:02:19.9]} 25. Ng5
{[%clk 0:01:32.3]} 25... Nd8 {[%clk 0:02:13.9]} 26. Rb1 {[%clk 0:01:19.4]} 26...
Rc7 {[%clk 0:02:08]} 27. a4 {[%clk 0:01:16.5]} 27... Bxb4 {[%clk 0:01:35]} 28.
a5 {[%clk 0:01:06.6]} 28... Qxa5 {[%clk 0:01:33.2]} 29. Nf4 {[%clk 0:01:06.3]}
29... Kc8 {[%clk 0:01:26.2]} 30. Qg4 {[%clk 0:00:58.1]} 30... Kb8 {[%clk
0:01:17.4]} 31. Ngxe6 {[%clk 0:00:55.1]} 31... fxe6 {[%clk 0:01:14.2]} 32. Nxe6
{[%clk 0:00:56]} 32... Nxe6 {[%clk 0:01:06.9]} 33. Qxe6 {[%clk 0:00:56.9]} 33...
h3 {[%clk 0:00:53.1]} 34. Qg4 {[%clk 0:00:45.6]} 34... Bd2 {[%clk 0:00:34.9]}
35. e6 {[%clk 0:00:45.7]} 35... Ne3 {[%clk 0:00:32.1]} 36. Qg7 {[%clk
0:00:34.7]} 36... Rhc8 {[%clk 0:00:17.5]} 37. f7 {[%clk 0:00:25.7]} 37... Nxf1
{[%clk 0:00:13.9]} 38. f8=Q {[%clk 0:00:24.4]} 38... Rxf8 {[%clk 0:00:09.9]} 39.
Qxf8+ {[%clk 0:00:23.6]} 39... Ka7 {[%clk 0:00:10.3]} 40. Qxf1 {[%clk
0:00:20.7]} 40... Qa2 {[%clk 0:00:02.2]} 41. Bxd2 {[%clk 0:00:14.9]} 41... Qxd2
{[%clk 0:00:02]} 42. Qxh3 {[%clk 0:00:14]} 42... Rc2 {[%clk 0:00:02.2]} 43. Qg3
{[%clk 0:00:05.1]} 43... Qe2 {[%clk 0:00:01.9]} 44. h3 {[%clk 0:00:02.7]} 44...
Qe4+ {[%clk 0:00:02]} 45. Kg1 {[%clk 0:00:03.2]} 45... Qxd4+ {[%clk 0:00:02.6]}
46. Kh1 {[%clk 0:00:03.4]} 46... Qe4+ {[%clk 0:00:02.9]} 47. Kg1 {[%clk
0:00:04.1]} 47... Re2 {[%clk 0:00:03.1]} 48. Rf1 {[%clk 0:00:03.9]} 48... Qd4+
{[%clk 0:00:03.2]} 49. Rf2 {[%clk 0:00:03.7]} 49... Qd1+ {[%clk 0:00:02.3]} 50.
Kh2 {[%clk 0:00:03.9]} 50... Qd2 {[%clk 0:00:02.6]} 51. Kg2 {[%clk 0:00:03]}
51... Rxf2+ {[%clk 0:00:02]} 52. Qxf2+ {[%clk 0:00:03.9]} 52... Qxf2+ {[%clk
0:00:01.7]} 53. Kxf2 {[%clk 0:00:04.8]} 53... Kb6 {[%clk 0:00:02.1]} 54. e7
{[%clk 0:00:05.7]} 1-0